Cogmind - Beta 13 @@@ ROGUE MODE // 2024.05.15 @ 08:08:59 Player: my balls icht Result: Destroyed by Y-45 Defender with Heavy Assault Rifle Performance ------------- Evolutions (2) 1000 Regions Visited (3) 600 Robots Destroyed (34) 170 Value Destroyed (859) 859 Prototype IDs (0) 0 Alien Tech Used (0) 0 Bonus (0) 0 TOTAL SCORE: 2629 Bonus ------- None Cogmind --------- Core Integrity 0/550 Matter 271/300 Energy 100/100 System Corruption 0% Temperature Cool (18) Movement Walking (120) Location -8/Materials Parts ------- > --- POWER (2) -------- (None) > --- PROPULSION (3) --- Improved Aluminum Leg Improved Aluminum Leg Flight Unit > --- UTILITY (4) ------ Advanced Visual Processing Unit Targeting Computer Targeting Computer > --- WEAPON (2) ------- Assault Cannon > --- INVENTORY (5) ---- Improved Datajack Peak State ------------ > --- POWER ------------ Deuterium Engine Deuterium Engine > --- PROPULSION ------- Carbon-fiber Leg Carbon-fiber Leg Carbon-fiber Leg > --- UTILITY ---------- Small Storage Unit Advanced Visual Processing Unit Targeting Computer Targeting Computer > --- WEAPON ----------- Gauss Rifle Great Maul > --- INVENTORY -------- Light Ion Engine Flight Unit Flight Unit Flight Unit Flight Unit Shock Bomb Launcher Improved Datajack [Rating: 29] Favorites ----------- Power Deuterium Engine Engine Deuterium Engine Power Core Nuclear Core Propulsion Light Treads Treads Light Treads Leg Carbon-fiber Leg Flight Unit Flight Unit Utility Small Storage Unit Device Improved Terrain Scanner Storage Small Storage Unit Processor Targeting Computer Protection Light Armor Plating Weapon Shotgun Energy Gun Medium Laser Ballistic Gun Shotgun Ballistic Cannon Assault Cannon Launcher Grenade Launcher Impact Weapon Great Maul Build | -11 -10 -9 -8 ------- Run | Yrd Mat Mat Mat Slots Evolved 4 | . . 2 2 Power 1 | . . 1 . Propulsion 1 | . . . 1 Utility 2 | . . 1 1 Weapon . | . . . . Parts Attached 46 | 7 1 10 28 Power 12 | 1 . 4 7 Engine 10 | 1 . 4 5 Core 2 | . . . 2 Reactor . | . . . . Propulsion 17 | 2 . 1 14 Treads 5 | 2 . 1 2 Leg 5 | . . . 5 Wheel . | . . . . Hover . | . . . . Flight 7 | . . . 7 Utility 8 | 2 . 3 3 Device 3 | 1 . 2 . Storage 1 | 1 . . . Processor 3 | . . . 3 Hackware . | . . . . Protection 1 | . . 1 . Artifact . | . . . . Weapon 9 | 2 1 2 4 Energy Gun 2 | 2 . . . Energy Cannon . | . . . . Ballistic Gun 3 | . . 2 1 Ballistic Cannon 1 | . . . 1 Launcher 2 | . 1 . 1 Special Weapon . | . . . . Impact Weapon 1 | . . . 1 Slashing Weapon . | . . . . Piercing Weapon . | . . . . Special Melee Weapon . | . . . . Unidentified Prototypes . | . . . . Parts Lost 21 | . . 1 20 Power 8 | . . 1 7 Propulsion 7 | . . . 7 Utility 3 | . . . 3 Weapon 3 | . . . 3 Highest Loss Streak 11 | . . 1 11 To Critical Strikes . | . . . . Average Slot Usage (%) 96 | . 100 99 92 Engine 15 | . 14 21 13 Core 1 | . . . 2 Treads 14 | . 28 22 4 Leg 9 | . . . 18 Device 7 | . 14 14 . Storage 10 | . 14 11 9 Processor 12 | . . . 24 Protection 2 | . . 7 . Energy Gun 6 | . 25 . . Ballistic Gun 11 | . . 19 12 Impact Weapon 1 | . . . 3 Naked Turns . | . . . . Heaviest Build 33 | 12 14 33 33 Greatest Support 45 | 40 40 40 45 Greatest Overweight (x) 5 | . . . 5 Average Overweight (x) . | . . . . Largest Inventory Capacity 8 | 8 8 8 8 Average Capacity 7 | 7 8 8 8 Most Carried 8 | 2 4 8 8 Average Carried 5 | 1 2 7 6 Final Capacity 8 | 8 8 8 5 Final Carried 8 | 2 4 8 1 Class Distribution -------------------- 61% | Mutant 38% | Scavenger-Mutant Dominant Class ---------------- Mutant | -10/Materials Mutant | -9/Materials Scavenger-Mutant | -8/Materials Resources | -11 -10 -9 -8 ----------- Run | Yrd Mat Mat Mat Matter Collected 830 | 270 40 153 367 Remotely . | . . . . Salvage Created 993 | 39 117 321 516 Parts 69 | 5 9 28 27 Haulers Intercepted . | . . . . Recyclers Shooed . | . . . . Parts Field Recycled . | . . . . Retrieved Matter . | . . . . Parts Self-Destructed . | . . . . Prevented . | . . . . Kills | -11 -10 -9 -8 ------- Run | Yrd Mat Mat Mat Combat Hostiles Destroyed 26 | . 4 9 13 Melee 4 | . . . 4 Guns 14 | . . 9 5 AOE 5 | . 4 . 1 Classes Destroyed 9 | 1 1 4 3 Worker 2 | . . 2 . Tunneler 2 | 2 . . . Recycler 2 | . . 1 1 Operator 1 | . . . 1 Watcher 1 | . . . 1 Swarmer 12 | . . 7 5 Grunt 8 | . 4 . 4 Sentry 4 | . . 2 2 Hunter 2 | . . . 2 Best Kill Streak 7 | 1 4 7 3 Combat Bots Only 5 | . 4 5 3 Max Kills in Single Turn 3 | 1 3 2 2 Gunslinging 1 | . . . 1 Exploded 3 | . 3 . 1 Melee 1 | . . . 1 Uniques/NPCs Destroyed . | . . . . Combat | -11 -10 -9 -8 -------- Run | Yrd Mat Mat Mat Hostile Shots Fired 236 | . 6 56 174 Missed 59 | . 2 13 44 Damage Taken 2660 | . 60 477 2123 Core 604 | . . 41 563 Absorbed by Shields . | . . . . Core Remaining (%) 96 | 100 100 89 . Volleys Fired 43 | 4 3 13 23 Largest 2 | 2 2 2 2 Hottest 90 | 90 80 46 51 Shots Fired 78 | 8 6 26 38 Gun 71 | 8 3 26 34 Cannon . | . . . . Launcher 7 | . 3 . 4 Special . | . . . . Kinetic 60 | . . 26 34 Thermal 11 | 8 3 . . Explosive 3 | . 3 . . Electromagnetic 4 | . . . 4 Robot Hit Streak 8 | 4 1 7 8 Robot Miss Streak 6 | 2 1 6 4 Penetration Max . | . . . . Secondary Targets 3 | . . 2 1 Max Gunslinging Chain 1 | . . 1 1 Shots Hit Robots 73 | 5 2 20 46 Core Hits 48 | 2 8 18 20 Critical Kills 3 | . . 1 2 Critical Parts Destroyed 7 | . . 1 6 Critical Strikes 10 | . . 2 8 Destroy 4 | . . 2 2 Smash 6 | . . . 6 Melee Attacks 25 | . . . 25 Impact 25 | . . . 25 Slashing . | . . . . Piercing . | . . . . Sneak Attacks . | . . . . Combat Hostiles . | . . . . Follow-up Attacks . | . . . . Damage Inflicted 2245 | 58 276 357 1554 Guns 784 | 58 . 347 379 Cannons . | . . . . Explosions 767 | . 269 . 498 Melee 677 | . . . 677 Ramming 17 | . 7 10 . Kinetic 726 | . . 347 379 Thermal 427 | 58 . . 369 Explosive 269 | . 269 . . Electromagnetic 129 | . . . 129 Impact 677 | . . . 677 Slashing . | . . . . Piercing . | . . . . Highest Corruption . | . . . . Average Corruption . | . . . . Corruption Purged . | . . . . Corruption Blocked . | . . . . Overload Shots . | . . . . Overflow Damage 338 | . . . 338 Projectiles . | . . . . Explosions 93 | . . . 93 Melee 245 | . . . 245 Knockbacks 1 | . . . 1 Impact 1 | . . . 1 Kinetic . | . . . . Secondary . | . . . . Self-Inflicted Damage 205 | . . . 205 Shots 4 | . . . 4 Rammed 4 | . 2 2 . Targets Rammed 4 | . 2 2 . Kicked . | . . . . Crushed . | . . . . Highest Temperature 81 | 60 81 30 73 Average Temperature 27 | 30 39 14 36 Received Heat Transfer 861 | . 33 135 693 Siege Activations . | . . . . Robots Corrupted . | . . . . Combat Hostiles . | . . . . Parts Fried 5 | . . . 5 Impact Corruptions 8 | . . . 8 Robots Melted . | . . . . Combat Hostiles . | . . . . Parts Melted 1 | 1 . . . Heat Transferred 399 | 149 . . 250 Parts Sabotaged . | . . . . Parts Stolen . | . . . . Parts Stripped . | . . . . Power Chain Reactions 1 | . . . 1 Alert | -11 -10 -9 -8 ------- Run | Yrd Mat Mat Mat Peak Influence 215 | 10 143 154 215 Initial 61 | . 6 59 61 Average 70 | 5 18 88 94 Maximum Alert Level 1 | . . . 1 Low Security (%) 98 | 100 100 100 97 Level 1 1 | . . . 2 Level 2 . | . . . . Level 3 . | . . . . Level 4 . | . . . . Level 5 . | . . . . High Security . | . . . . Max Security . | . . . . Squads Dispatched 6 | . 1 . 5 Investigation 1 | . 1 . . Extermination . | . . . . Reinforcement 2 | . . . 2 Assault . | . . . . Garrison 3 | . . . 3 Intercept . | . . . . Searches Triggered . | . . . . Construction Impeded . | . . . . Haulers Reinforced . | . . . . Active Scanning Responses . | . . . . Cargo Convoy Interrupts . | . . . . Stealth | -11 -10 -9 -8 --------- Run | Yrd Mat Mat Mat Distress Signals 7 | . 1 1 5 Communications Jammed . | . . . . Distress Signals . | . . . . Times Spotted 54 | . 5 13 36 Peak Tracking Total 6 | . 6 4 6 Tactical Retreats 6 | . 1 . 5 Traps | -11 -10 -9 -8 ------- Run | Yrd Mat Mat Mat Traps Triggered 1 | . . . 1 Indirectly . | . . . . Trap Hack Attempts . | . . . . Triggered . | . . . . Disarmed . | . . . . Reprogrammed . | . . . . Reused . | . . . . Traps Extracted . | . . . . Installed . | . . . . Triggered . | . . . . Machines | -11 -10 -9 -8 ---------- Run | Yrd Mat Mat Mat Machines Disabled 3 | . . . 3 Max in Single Turn 2 | . . . 2 Machines Repaired . | . . . . Machines Dismantled . | . . . . Machines Sabotaged . | . . . . Overloaded Fab Kills . | . . . . Hacking | -11 -10 -9 -8 --------- Run | Yrd Mat Mat Mat Machines Accessed 2 | . 2 . . Terminals 2 | . 2 . . Fabricators . | . . . . Repair Stations . | . . . . Recycling Units . | . . . . Scanalyzers . | . . . . Garrison Access . | . . . . Total Hacks 6 | . 6 . . Successful 1 | . 1 . . Failed 5 | . 5 . . Catastrophic . | . . . . Database Lockouts . | . . . . Manual . | . . . . Terminals 6 | . 6 . . Fabricators . | . . . . Repair Stations . | . . . . Recycling Units . | . . . . Scanalyzers . | . . . . Garrison Access . | . . . . Terminal Hacks 1 | . 1 . . Dispatch Records 1 | . 1 . . Fabricator Hacks . | . . . . Repair Station Hacks . | . . . . Recycling Unit Hacks . | . . . . Scanalyzer . | . . . . Garrison Access Hacks . | . . . . Unauthorized Hacks . | . . . . Terminals . | . . . . Fabricators . | . . . . Repair Stations . | . . . . Recycling Units . | . . . . Scanalyzers . | . . . . Garrison Access . | . . . . Data Cores Recovered . | . . . . Used . | . . . . Hacking Detections 2 | . 2 . . Full Trace Events 1 | . 1 . . Feedback Events . | . . . . Feedback Blocked . | . . . . Robot Schematics Acquired . | . . . . Robots Built . | . . . . Authchips . | . . . . Time . | . . . . Total Robot Build Rating . | . . . . Part Schematics Acquired . | . . . . Parts Built . | . . . . Authchips . | . . . . Time . | . . . . Total Part Build Rating . | . . . . Parts Repaired . | . . . . Time . | . . . . Parts Recycled . | . . . . Recycled Matter . | . . . . Retrieved Matter . | . . . . Retrieved Components . | . . . . Parts Scanalyzed . | . . . . Part Schematics Acquired . | . . . . Parts Damaged . | . . . . Bothacking | -11 -10 -9 -8 ------------ Run | Yrd Mat Mat Mat Used RIF Installer . | . . . . Robots Hacked . | . . . . Non-combat . | . . . . Combat . | . . . . Robot Hacks Applied . | . . . . Relay Couplers Released . | . . . . Fabnet Peak Effective % . | . . . . Robots Rewired . | . . . . Allies Hacked . | . . . . Hacks Repelled . | . . . . Allies | -11 -10 -9 -8 -------- Run | Yrd Mat Mat Mat Total Allies . | . . . . Largest Group . | . . . . Highest-Rated Group . | . . . . Highest-Rated Ally . | . . . . Total Orders . | . . . . Ally Attacks . | . . . . Total Damage . | . . . . Kills . | . . . . Allies Corrupted . | . . . . Allies Melted . | . . . . Intel | -11 -10 -9 -8 ------- Run | Yrd Mat Mat Mat Robot Analysis Total . | . . . . Derelict Logs Recovered . | . . . . Drone Launches . | . . . . Drone Recoveries . | . . . . Exploration | -11 -10 -9 -8 ------------- Run | Yrd Mat Mat Mat Turns Passed 2934 | 124 712 670 1428 Spaces Moved 1019 | 65 223 258 473 Core 12 | 3 . . 9 Treads 593 | 62 223 258 50 Legs 318 | . . . 318 Wheels . | . . . . Hover . | . . . . Flight 96 | . . . 96 Fastest Speed 34 | 50 160 160 34 Average Speed 143 | 154 160 160 125 Slowest Speed 300 | 160 160 160 300 Overloaded Moves . | . . . . Propulsion Burnouts . | . . . . Robots Hopped . | . . . . Cave-ins Triggered . | . . . . Exploration Rate (%) 23 | 4 30 27 34 Regions Visited 3 Branch Regions . Pre-discovered Areas . | . . . . Known Exits Taken . | . . . . Unknown Exits Taken 3 | 1 1 1 . Scrap Searched . | . . . . Spaces Dug . | . . . . Terrain Destroyed 66 | . 24 . 42 Melee . | . . . . Projectile . | . . . . AOE 66 | . 24 . 42 Terrain Rammed . | . . . . Walls Destroyed . | . . . . Machines Disabled . | . . . . Actions | -11 -10 -9 -8 --------- Run | Yrd Mat Mat Mat Total 2353 | 77 571 491 1214 Wait 1183 | . 341 188 654 Move 1016 | 64 222 257 473 Hop . | . . . . Pick Up 15 | 2 2 9 2 Fast Attach 31 | 7 . 7 17 Attach 14 | . . 3 11 Detach 6 | . . 3 3 Swap 1 | . 1 . . Drop 15 | . . 9 6 Fire 43 | 4 3 13 23 Melee 25 | . . . 25 Ram . | . . . . Kick . | . . . . Crush 4 | . 2 2 . Escape Stasis . | . . . . Rewire . | . . . . Trap . | . . . . Miscellaneous . | . . . . Route ------- -11/Scrapyard -10/Materials -9/Materials -8/Materials History --------- Turn | Location | Event 8 | -11/Scrapyard | Discovered new exit (range 14) 125 | -11/Scrapyard | Entered Materials 316 | -10/Materials | Build established: Mutant 610 | -10/Materials | Discovered new exit (range 16) 837 | -10/Materials | Entered another Materials area 837 | -9/Materials | Evolved 2 slots: Power x1, Utility x1 1435 | -9/Materials | Discovered new exit (range 15) 1507 | -9/Materials | Entered another Materials area 1507 | -8/Materials | Evolved 2 slots: Propulsion x1, Utility x1 1637 | -8/Materials | Lost 3 parts (1n2u) 1915 | -8/Materials | Build established: Scavenger-Mutant 2311 | -8/Materials | Garrison activated, responded to threat 2808 | -8/Materials | Core integrity fell below 50% 2852 | -8/Materials | Lost 11 parts (4p4n3w) 2862 | -8/Materials | Core integrity fell below 20% 2924 | -8/Materials | Lost 3 parts (1p2n) 2935 | -8/Materials | Destroyed by Y-45 Defender with Heavy Assault Rifle Last Messages --------------- M-28 Smith repairs Particle Gun. K-01 Serf collects debris. Flight Unit destroyed. K-01 Serf collects debris. Lgt. Nuclear Core destroyed. Acquired 17 matter. K-01 Serf collects debris. Acquired Assault Cannon. Acquired Lgt. Deuterium Engine. Flight Unit destroyed. Critical hit (Burn: +37). Knocked back. Acquired 4 matter. Flight Unit destroyed. M-28 Smith repairs G-50 Soldier. Lgt. Deuterium Engine destroyed. Critical hit (Burn: +37). Acquired Imp. Aluminum Leg. Acquired 35 matter. Sml. Storage Unit destroyed. Map ----- +----------------------------------------------------+ | | | | | | | | | | | | | | | | | | | | | | | | | ??????????????????????????????? | | ??????????????????????????????? | | ????????????##########????????? | | ????????????# #????????? | | ????????????# " #????????? | | ?????######## "G" #????????? | | ?????# # " " #????????? | | ?????# """ # #????###?? | | ?????#! """ # """ #??### ### | | ?????# """ # """[ #### # | | ?????# # ] """ !# # %!/ # | | ?????# [# # # // # | | ?????####+#########+## Yg / # | | ####### #@ # | | # # | | ####### """" ""%" # "T" # | | # """" """" ####### | | !! # """" """" # # | | !! # # """ # | | !! # + """ # | | !## ########+##### # """ # | | "" ## #???# # #[ # | | "" ## #???# """ / # # [ # | | "" ## #???# """ # # # | | ## #???# """ # #""" # | | ######## #???# # #"R # | | ######## ###?# """ # #""" # | | # # #?# """ # #""" # | | # """ + #?# """ !# # # | | # """ # #?# # ####### | | # """ # #?########## #?????? | | # # ############+##????? | | #= # # #????? | | ####+### # #????? | | # #????? | | # #????? | | # #????? | | ######## + #????? | +----------------------------------------------------+ Best States ------------- Heat Dissipation 31 Energy Generation 23 Energy Capacity 450 Matter Stores 300 Matter Capacity 300 Sight Range 20 Robot Scan Range 14 Terrain Scan Range 16 Terrain Scan Density 10 Armor Coverage 150 Evasion (%) 62 Targeting Accuracy 10 Recoil Reduction 2 Item Schematics ----------------- None Robot Schematics ------------------ None Fabricated ------------ Nothing Alien Tech Used ----------------- None Achievements -------------- None Challenges ------------ None Game ------ Seed TacticalHardenedExpander Manual? 0 Play Time 00:19:17 Cumulative 13.0 hours Start 2024.05.15 @ 07:52:18 End 2024.05.15 @ 08:08:59 Sessions 1 Manual Loads 0 Difficulty Rogue Special Mode None Game No. 40 Rogue 40 Adventurer 0 Explorer 0 Win Type - Total 0 Types 0/0/0/0/0/0/0/0/0 Lore% 17 Gallery% 24 Achievement% 17 Wizard Run 0 Options --------- Layout 1 ASCII 0 Keyboard 0 Movement Mouse Keybinds 0 Fullscreen 1 Font 24/Smallcaps Map View 50x35 Zoom Use 0% Tactical HUD 0 Map Filters NONE Filters NONE Steam 1 RUN: ba62127f-675a-4200-8e66-de5ffb899c92